[Event "10th Iberoamericano-ch 2024"]
[Site "Linares"]
[Date "2024.09.28"]
[Round "6.9"]
[White "Salinas Herrera, Pablo"]
[Black "Palma Villanueva, Miguel Tadeo"]
[Result "1-0"]
[ECO "B23"]
[WhiteElo "2479"]
[BlackElo "2266"]
[Annotator "ChessBase"]
[PlyCount "101"]
[EventDate "2024.09.25"]
[EventType "swiss"]
[EventCountry "ESP"]
[SourceTitle "playchess.com"]
[Source "ChessBase"]
[SourceQuality "1"]
[TimeControl "5400+30"]

1. e4 {[%emt 0:00:04]} c5 {[%emt 0:00:12]} 2. Nc3 {[%emt 0:00:29]} e6 {[%emt 0:00:07]} 3. g3 {[%emt 0:00:59]} Nc6 {[%emt 0:00:35]} 4. Bg2 {[%emt 0:00:09]} a6 {[%emt 0:00:52]} 5. Nge2 {[%emt 0:00:09]} b5 {[%emt 0:00:11]} 6. d4 {[%emt 0:02:47]} cxd4 {[%emt 0:02:32]} 7. Nxd4 {[%emt 0:00:09]} Bb7 {[%emt 0:00:05]} 8. O-O {[%emt 0:00:08]} Bc5 {[%emt 0:00:02]} 9. Nb3 {[%emt 0:03:54]} Bb6 {[%emt 0:10:45]} 10. Bf4 {[%emt 0:02:10]} e5 {[%emt 0:08:32]} 11. Bd2 {[%emt 0:01:06]} Nf6 {[%emt 0:02:16]} 12. a4 {[%emt 0:00:16]} O-O {[%emt 0:09:27]} 13. Bg5 {[%emt 0:02:18]} Nd4 {[%emt 0:04:46]} 14. Nxd4 {[%emt 0:04:53]} Bxd4 {[%emt 0:06:37]} 15. axb5 {[%emt 0:10:56]} h6 {[%emt 0:01:28]} 16. Bxf6 {[%emt 0:00:58]} Qxf6 {[%emt 0:00:06]} 17. Ne2 {[%emt 0:00:07]} axb5 {[%emt 0:06:47]} 18. Rxa8 {[%emt 0:04:25]} Bxa8 {[%emt 0:01:38]} 19. Nxd4 {[%emt 0:00:59]} exd4 {[%emt 0:00:05]} 20. Qd3 {[%emt 0:00:04]} Qb6 {[%emt 0:03:26]} 21. Rd1 {[%emt 0:01:39]} Rc8 {[%emt 0:00:24]} 22. h4 {[%emt 0:01:03]} Kf8 {[%emt 0:10:40]} 23. Rd2 {[%emt 0:02:33]} Bb7 {[%emt 0:09:10]} 24. Qf3 {[%emt 0:01:09]} Qc5 {[%emt 0:03:09]} 25. c3 {[%emt 0:01:36]} dxc3 {[%emt 0:05:54]} 26. Rxd7 {[%emt 0:00:05]} Qc4 {[%emt 0:00:03]} 27. bxc3 {[%emt 0:00:09]} Bc6 {[%emt 0:00:10]} 28. Rd4 {[%emt 0:00:22]} Qe6 {[%emt 0:01:00]} 29. Qd3 {[%emt 0:00:07]} Be8 {[%emt 0:01:16]} 30. Rd8 {[%emt 0:04:47]} Rxd8 {[%emt 0:05:23]} 31. Qxd8 {[%emt 0:00:06]} f6 {[%emt 0:00:49]} 32. Kh2 {[%emt 0:01:31]} Qe7 {[%emt 0:01:36]} 33. Qd4 {[%emt 0:03:13]} Bc6 {[%emt 0:02:29]} 34. f3 {[%emt 0:00:06]} Kf7 {[%emt 0:04:01]} 35. Bf1 {[%emt 0:01:27]} g5 {[%emt 0:00:43]} 36. hxg5 {[%emt 0:01:23]} hxg5 {[%emt 0:00:08]} 37. Bxb5 {[%emt 0:01:03]} Bxb5 {[%emt 0:00:55]} 38. Qd5+ {[%emt 0:00:04]} Kg7 {[%emt 0:00:26]} 39. Qxb5 {[%emt 0:00:05]} Qa7 {[%emt 0:00:10]} 40. Qe2 {[%emt 0:03:19]} Qc5 {[%emt 0:00:43]} 41. c4 {[%emt 0:00:47]} Qa3 {[%emt 0:00:11]} 42. e5 {[%emt 0:07:12]} fxe5 {[%emt 0:00:14]} 43. Qxe5+ {[%emt 0:00:04]} Kg6 {[%emt 0:00:05]} 44. Qe4+ {[%emt 0:00:27]} Kh6 {[%emt 0:01:06]} 45. Kh3 {[%emt 0:00:31]} Qd6 {[%emt 0:00:10]} 46. Qd5 {[%emt 0:00:18]} Qc7 {[%emt 0:01:27]} 47. c5 {[%emt 0:00:07]} Qc8+ {[%emt 0:00:06]} 48. Kg2 {[%emt 0:00:06]} Qe8 {[%emt 0:00:25]} 49. c6 {[%emt 0:01:16]} Qe2+ {[%emt 0:00:22]} 50. Kh3 {[%emt 0:00:08]} g4+ {[%emt 0:00:19]} 51. Kxg4 {[%emt 0:00:21]} 1-0